bitfinex/quotes_SOLUSD_20240818
["timestamp","ask_amount","ask_price","bid_price","bid_amount"]
[1723979408615,6.0294,144.35,144.29,0.12549]
[1723979408820,6.0294,144.35,144.29,0.37647]
[1723979412011,6.0294,144.35,144.31,0.12549]
[1723979412328,15.1538,144.36,144.31,74.15702989]
[1723979412532,15.1538,144.36,144.32,0.12549]
[1723979412704,15.1538,144.36,144.33,0.12549]
[1723979413199,15.5916,144.4,144.33,0.37647]
[1723979413399,15.5916,144.4,144.34,0.12549]
[1723979413814,15.5916,144.4,144.35,0.12549]
[1723979414023,15.5916,144.4,144.35,0.37647]
[1723979414333,15.5916,144.4,144.36,0.12549]
[1723979414625,15.5916,144.4,144.36,0.37647]
[1723979416104,15.5916,144.4,144.37,0.12549]
[1723979416305,15.5916,144.4,144.37,0.37647]
[1723979416612,15.5916,144.4,144.38,0.12549]
[1723979416927,15.5916,144.4,144.38,0.37647]
[1723979417238,15.7619,144.44,144.39,0.12549]
[1723979417706,15.7619,144.44,144.39,0.37647]
[1723979418030,15.7619,144.44,144.4,0.12549]
[1723979418213,15.7619,144.44,144.4,0.37647]
[1723979421822,15.7619,144.44,144.41,0.12549]
[1723979422128,15.7619,144.44,144.41,0.37647]
[1723979422633,15.7619,144.44,144.42,0.12549]
[1723979422808,15.7619,144.44,144.43,0.12549]
[1723979423328,6.371,144.48,144.43,0.37647]
[1723979423535,6.371,144.48,144.44,0.12549]
[1723979423721,6.371,144.48,144.45,0.12549]
[1723979423907,6.371,144.48,144.45,0.37647]
[1723979426822,15.7619,144.49,144.45,0.37647]
[1723979428440,15.7619,144.49,144.46,0.12549]
[1723979428639,15.7619,144.49,144.46,0.37647]
[1723979430417,15.7619,144.49,144.41,2.773884]
[1723979431923,15.7619,144.49,144.42,0.25098]
[1723979432119,15.7619,144.49,144.43,0.12549]
[1723979432326,15.7619,144.49,144.42,0.25098]
[1723979433851,15.7619,144.49,144.42,9.03153989]
[1723979434057,15.7619,144.49,144.44,0.12549]
[1723979434340,15.7619,144.49,144.44,20.25098]
[1723979434543,15.7619,144.49,144.46,0.12549]
[1723979435142,15.7619,144.49,144.46,0.25098]
[1723979435449,6.371,144.52,144.47,0.25098]
[1723979436532,6.371,144.52,144.47,45.25098]
[1723979436927,6.371,144.52,144.46,20.0]
[1723979437132,6.371,144.52,144.41,2.773884]
[1723979438445,6.371,144.52,144.42,0.25098]
[1723979438739,6.371,144.52,144.43,0.25098]
[1723979438955,6.371,144.52,144.44,0.12549]
[1723979439244,6.371,144.52,144.44,0.25098]
[1723979439942,6.371,144.52,144.45,0.12549]
[1723979440132,6.371,144.52,144.45,0.25098]
[1723979440543,6.371,144.52,144.46,0.12549]
[1723979440722,6.371,144.52,144.46,0.37647]
[1723979442766,6.371,144.52,144.42,20.0]
[1723979443059,6.371,144.52,144.44,0.12549]
[1723979443356,6.371,144.52,144.44,20.37647]
[1723979443529,6.371,144.52,144.45,45.0]
[1723979446242,6.371,144.52,144.46,0.50196]
[1723979448242,6.371,144.52,144.46,20.50196]
[1723979448441,15.3364,144.53,144.48,0.12549]
[1723979448755,15.3364,144.53,144.48,20.50196]
[1723979448950,15.3364,144.53,144.49,45.0]
[1723979452343,15.3364,144.53,144.48,20.37647]
[1723979452662,15.3364,144.53,144.48,0.25098]
[1723979452870,15.3364,144.53,144.42,8.78055989]
[1723979454074,15.3364,144.53,144.43,0.12549]
[1723979454275,15.3364,144.53,144.43,45.50196]
[1723979454571,15.3364,144.53,144.45,0.12549]
[1723979454770,15.3364,144.53,144.45,45.50196]
[1723979455566,15.3364,144.53,144.47,0.12549]
[1723979455766,15.3364,144.53,144.47,45.50196]
[1723979458066,15.3364,144.53,144.46,20.0]
[1723979458272,15.3364,144.53,144.44,20.0]
[1723979459359,15.3364,144.53,144.45,0.12549]
[1723979459677,15.3364,144.53,144.45,45.50196]
[1723979459877,15.3364,144.53,144.47,0.12549]
[1723979460078,15.3364,144.53,144.47,45.50196]
[1723979460974,15.3364,144.53,144.49,0.12549]
[1723979461278,15.3364,144.53,144.49,45.50196]
[1723979463480,15.3364,144.53,144.49,0.12549]
[1723979464165,15.3364,144.53,144.46,0.12549]
[1723979464476,15.3364,144.53,144.46,45.37647]
[1723979464690,15.3364,144.53,144.48,0.12549]
[1723979464872,15.3364,144.53,144.48,45.37647]
[1723979466289,15.3364,144.53,144.49,0.12549]
[1723979466664,15.3364,144.53,144.48,45.37647]
[1723979470593,15.3364,144.53,144.49,0.12549]
[1723979471284,15.3364,144.53,144.49,0.25098]
[1723979472702,15.3364,144.53,144.47,20.0]
[1723979472905,15.3364,144.53,144.44,20.0]
[1723979473085,15.3364,144.53,144.43,20.0]
[1723979474099,15.3364,144.53,144.44,0.12549]
[1723979474279,15.3364,144.53,144.44,45.50196]
[1723979474480,15.3364,144.53,144.46,0.12549]
[1723979474677,15.3364,144.53,144.46,45.50196]
[1723979480781,15.3364,144.53,144.48,0.12549]
[1723979481001,15.3364,144.53,144.48,45.50196]
[1723979482005,6.4628,144.56,144.48,45.50196]
[1723979482209,15.3328,144.57,144.5,0.12549]
[1723979482507,15.3328,144.57,144.5,46.88541868]
[1723979482895,15.3328,144.57,144.5,45.50196]
[1723979483205,15.3328,144.57,144.52,0.12549]
[1723979483384,6.5032,144.59,144.52,46.88526409]
[1723979483587,15.3328,144.61,144.54,0.12549]
[1723979483907,15.3328,144.61,144.54,45.50196]
[1723979484213,15.3328,144.61,144.56,0.12549]
[1723979484508,15.3328,144.61,144.56,45.50196]
[1723979484718,15.3328,144.61,144.58,0.12549]
[1723979484886,15.3328,144.61,144.58,45.50196]
[1723979485294,6.5032,144.63,144.58,45.50196]
[1723979485602,15.3328,144.64,144.58,45.50196]
[1723979488618,6.5032,144.66,144.6,0.12549]
[1723979488783,6.5032,144.66,144.6,45.50196]
[1723979490899,6.5032,144.66,144.6,45.37647]
[1723979491091,6.5032,144.66,144.53,22.6123]
[1723979492395,6.5032,144.66,144.54,0.25098]
[1723979492613,6.5032,144.66,144.55,0.37647]
[1723979492809,6.5032,144.66,144.56,0.12549]
[1723979494100,6.5032,144.66,144.56,0.25098]
[1723979494305,6.5032,144.66,144.57,0.37647]
[1723979494509,6.5032,144.66,144.58,0.12549]
[1723979495197,6.5032,144.66,144.58,0.25098]
[1723979495391,6.5032,144.66,144.59,0.37647]
[1723979495592,6.5032,144.66,144.59,0.25098]
[1723979495815,6.5032,144.66,144.6,0.12549]
[1723979496029,6.5032,144.66,144.6,0.25098]
[1723979496316,6.5032,144.66,144.61,0.25098]
[1723979499215,6.5032,144.66,144.55,20.0]
[1723979499411,6.5032,144.66,144.54,20.0]
[1723979500410,6.5032,144.66,144.53,37.9451]
[1723979501721,6.5032,144.66,144.54,65.25098]
[1723979502018,16.5864,144.65,144.53,15.3328]
[1723979502217,16.71189,144.65,144.5,6.2397]
[1723979502393,16.71189,144.65,144.5,30.35305989]
[1723979502599,16.5864,144.63,144.5,30.35305989]
[1723979503647,16.5864,144.63,144.52,0.12549]
[1723979503934,16.5864,144.63,144.52,0.37647]
[1723979504131,16.5864,144.63,144.53,0.12549]
[1723979504340,16.5864,144.63,144.5,8.78055989]
[1723979504744,6.14,144.59,144.47,16.5864]
[1723979504927,16.5864,144.58,144.47,16.5864]
[1723979505257,16.5864,144.58,144.46,8.78055989]
[1723979506335,0.12549,144.57,144.46,8.78055989]
[1723979506557,22.7264,144.56,144.42,15.02025989]
[1723979506738,22.7264,144.56,144.43,8.78055989]
[1723979507617,22.7264,144.56,144.43,10.16433526]
[1723979507823,22.7264,144.56,144.44,65.50196]
[1723979508025,22.7264,144.56,144.44,74.28251989]
[1723979508548,22.7264,144.56,144.46,0.12549]
[1723979508718,22.7264,144.56,144.46,65.50196]
[1723979510627,22.7264,144.56,144.46,20.0]
[1723979510926,22.7264,144.56,144.43,21.3839464]
[1723979511127,22.7264,144.56,144.44,8.78055989]
[1723979511328,22.7264,144.56,144.45,20.0]
[1723979511743,22.7264,144.56,144.46,45.37647]
[1723979511919,22.7264,144.56,144.47,20.25098]
[1723979512117,22.7264,144.56,144.48,45.37647]
[1723979512320,22.7264,144.56,144.49,20.0]
[1723979516024,22.7264,144.56,144.5,0.12549]
[1723979516232,22.7264,144.56,144.5,45.50196]
[1723979518237,22.7264,144.56,144.5,0.12549]
[1723979518437,22.7264,144.56,144.45,20.0]
[1723979518662,22.7264,144.56,144.46,45.50196]
[1723979518955,22.7264,144.56,144.48,0.12549]
[1723979519124,22.7264,144.56,144.48,45.37647]
[1723979519324,22.7264,144.56,144.5,0.12549]
[1723979519527,22.7264,144.56,144.5,45.37647]
[1723979520250,22.7264,144.56,144.51,0.12549]
[1723979520445,22.7264,144.56,144.51,0.37647]
[1723979521431,22.7264,144.56,144.52,0.12549]
[1723979521639,22.7264,144.56,144.52,0.37647]
[1723979521954,6.598,144.59,144.53,0.12549]
[1723979522151,6.598,144.59,144.54,0.12549]
[1723979522448,6.598,144.59,144.54,0.37647]
[1723979522635,6.598,144.59,144.55,0.12549]
[1723979522827,6.598,144.59,144.55,0.25098]
[1723979524929,6.598,144.59,144.55,20.25098]
[1723979527140,6.598,144.59,144.56,0.12549]
[1723979527332,6.598,144.59,144.56,45.25098]
[1723979529336,6.598,144.59,144.55,20.0]
[1723979529541,6.598,144.59,144.5,20.0]
[1723979530156,6.598,144.59,144.5,28.78055989]
[1723979530460,15.7265,144.6,144.51,8.78055989]
[1723979530759,15.7265,144.6,144.53,0.12549]
[1723979530937,15.7265,144.6,144.53,9.03153989]
[1723979531139,15.7265,144.6,144.55,0.12549]
[1723979531346,15.7265,144.6,144.55,0.25098]
[1723979531530,15.7265,144.6,144.57,0.12549]
[1723979531734,15.7265,144.6,144.57,0.25098]
[1723979531937,15.7265,144.6,144.58,0.12549]
[1723979533461,6.4367,144.62,144.58,0.12549]
[1723979533661,6.4367,144.62,144.58,0.37647]
[1723979534255,6.4367,144.62,144.59,0.12549]
[1723979534461,6.4367,144.62,144.58,0.37647]
[1723979542671,6.4367,144.62,144.59,0.12549]
[1723979542971,6.4367,144.62,144.59,0.37647]
[1723979544867,6.4367,144.62,144.53,8.78055989]
[1723979545046,6.4367,144.62,144.5,8.78055989]
[1723979545251,6.4367,144.62,144.52,15.7175]
[1723979545460,6.4367,144.62,144.5,8.78055989]
[1723979545665,6.4367,144.62,144.51,15.7175]
[1723979545974,6.4367,144.62,144.51,24.49805989]
[1723979546276,6.4367,144.62,144.52,45.50196]
[1723979546473,6.4367,144.62,144.52,54.28251989]
[1723979546854,6.4367,144.62,144.54,0.12549]
[1723979547160,6.4367,144.62,144.54,45.50196]
[1723979547467,6.4367,144.62,144.55,20.0]
[1723979547653,6.4367,144.62,144.56,0.12549]
[1723979550557,6.4367,144.62,144.56,0.25098]
[1723979550871,6.4367,144.62,144.58,0.12549]
[1723979551075,6.4367,144.62,144.58,0.25098]
[1723979551273,6.4367,144.62,144.58,45.25098]
[1723979551590,15.7175,144.64,144.58,45.25098]
[1723979551778,15.7175,144.64,144.59,0.25098]
[1723979551976,15.7175,144.64,144.6,0.12549]
[1723979552652,15.7175,144.64,144.6,0.25098]
[1723979552978,15.7175,144.64,144.61,0.25098]
[1723979557870,15.7175,144.64,144.61,0.12549]
[1723979558074,15.7175,144.64,144.6,45.25098]
[1723979558264,15.7175,144.64,144.61,0.37647]
[1723979562575,15.7175,144.64,144.61,0.12549]
[1723979562772,15.7175,144.64,144.6,45.12549]
[1723979563391,15.7175,144.64,144.61,0.25098]
[1723979564173,15.7175,144.64,144.6,45.12549]
[1723979564787,15.7175,144.64,144.61,0.25098]
[1723979567990,15.7175,144.64,144.6,45.12549]
[1723979568570,15.7175,144.64,144.61,0.25098]
[1723979570091,15.7175,144.64,144.6,45.12549]
[1723979570294,15.7175,144.64,144.61,0.25098]
[1723979570669,15.7175,144.64,144.6,45.12549]
[1723979570878,15.7175,144.64,144.61,0.12549]
[1723979571087,15.7175,144.64,144.61,0.25098]
[1723979583473,15.7175,144.64,144.6,45.12549]
[1723979583676,15.7175,144.64,144.6,0.12549]
[1723979584510,15.7175,144.64,144.56,8.78055989]
[1723979584675,15.7175,144.64,144.52,8.78055989]
[1723979585390,16.555,144.62,144.52,8.78055989]
[1723979586706,16.555,144.6,144.48,259.8]
[1723979586880,45.25098,144.61,144.48,259.8]
[1723979586881,16.555,144.58,144.48,259.8]
[1723979587078,16.555,144.58,144.47,50.06262363]
[1723979587281,16.555,144.58,144.47,8.78055989]
[1723979588008,16.555,144.58,144.48,45.50196]
[1723979588789,16.555,144.58,144.5,0.12549]
[1723979588998,16.555,144.58,144.5,0.37647]
[1723979589833,16.555,144.58,144.5,0.12549]
[1723979589988,16.555,144.58,144.47,8.78055989]
[1723979590183,16.555,144.58,144.48,20.0]
[1723979590417,16.1253,144.56,144.42,50.08295939]
[1723979590588,16.1253,144.54,144.42,8.78055989]
[1723979591808,16.1253,144.54,144.43,20.0]
[1723979592110,16.1253,144.52,144.43,8.78055989]
[1723979592411,16.1253,144.49,144.41,16.1253]
[1723979592787,16.1253,144.49,144.34,24.192901]
[1723979593610,16.1253,144.49,144.35,20.0]
[1723979594296,16.1253,144.49,144.34,24.192901]
[1723979594499,16.1253,144.49,144.35,45.25098]
[1723979594707,16.1253,144.49,144.36,0.25098]
[1723979594909,16.1253,144.49,144.37,0.25098]
[1723979595201,16.1253,144.49,144.38,0.25098]
[1723979595524,16.1253,144.49,144.39,0.25098]
[1723979595704,16.1253,144.49,144.4,0.25098]
[1723979595898,16.1253,144.49,144.41,0.25098]
[1723979596206,16.1253,144.49,144.42,0.12549]
[1723979596817,16.1253,144.49,144.41,0.25098]
[1723979599495,16.1253,144.49,144.42,9.861328]
[1723979599702,16.1253,144.49,144.43,65.25098]
[1723979600002,16.1253,144.49,144.44,0.12549]
[1723979600201,16.1253,144.49,144.44,0.25098]
[1723979600618,16.1253,144.49,144.45,0.12549]
[1723979601425,16.1253,144.49,144.46,0.12549]
[1723979601620,16.1253,144.49,144.46,0.37647]
[1723979601820,16.1253,144.49,144.47,0.12549]
[1723979602230,22.5522,144.59,144.47,0.12549]
[1723979602414,16.1253,144.58,144.47,0.12549]
[1723979602813,16.1253,144.58,144.47,0.37647]
[1723979604037,0.12549,144.57,144.47,0.37647]
[1723979604613,22.5522,144.57,144.47,0.37647]
[1723979608242,22.5522,144.57,144.48,0.12549]
[1723979608444,22.5522,144.57,144.48,0.37647]
[1723979609151,22.5522,144.57,144.49,0.12549]
[1723979609331,22.5522,144.57,144.49,0.37647]
[1723979609947,22.5522,144.57,144.5,0.12549]
[1723979610356,22.5522,144.57,144.5,0.37647]
[1723979610521,22.5522,144.57,144.51,0.12549]
[1723979610720,22.5522,144.57,144.51,0.37647]
[1723979612835,22.5522,144.57,144.51,0.25098]
[1723979613044,22.5522,144.57,144.47,20.0]
[1723979614323,22.5522,144.57,144.48,45.50196]
[1723979614543,22.5522,144.57,144.49,20.0]
[1723979614730,22.5522,144.57,144.5,0.12549]
[1723979615048,22.5522,144.57,144.48,45.37647]
[1723979615251,22.5522,144.57,144.49,45.0]
[1723979615435,22.5522,144.57,144.5,0.37647]
[1723979615639,22.5522,144.57,144.5,0.12549]
[1723979616032,22.5522,144.57,144.49,0.25098]
[1723979616235,22.5522,144.57,144.5,0.25098]
[1723979616448,22.5522,144.57,144.51,0.12549]
[1723979616632,22.5522,144.57,144.51,45.12549]
[1723979616849,22.5522,144.57,144.52,0.12549]
[1723979617236,22.5522,144.57,144.52,0.25098]
[1723979617552,22.5522,144.57,144.53,0.12549]
[1723979617851,22.5522,144.57,144.53,0.25098]
[1723979619358,16.1253,144.57,144.54,0.12549]
[1723979619535,16.1253,144.57,144.54,0.25098]
[1723979629267,16.1253,144.57,144.54,20.25098]
[1723979630547,16.1253,144.57,144.54,20.12549]
[1723979630749,16.1253,144.57,144.48,0.12549]
[1723979630961,16.1253,144.57,144.48,65.50196]
[1723979632755,16.1253,144.57,144.48,73.6962417]
[1723979632958,16.1253,144.57,144.48,75.07979363]
[1723979633850,16.1253,144.57,144.48,73.6962417]
[1723979635161,16.1253,144.57,144.5,0.12549]
[1723979635366,16.1253,144.57,144.5,65.50196]
[1723979642283,6.6338,144.56,144.44,6.4871]
[1723979642451,6.6338,144.56,144.45,8.1942817]
[1723979643350,16.1253,144.55,144.45,8.1942817]
[1723979644657,16.1253,144.55,144.46,20.12549]
[1723979644963,16.1253,144.55,144.47,0.12549]
[1723979646046,16.1253,144.55,144.47,0.25098]
[1723979646279,16.1253,144.55,144.48,0.12549]
[1723979646654,16.1253,144.55,144.48,0.25098]
[1723979654891,16.1253,144.55,144.48,1.63482108]
[1723979655072,16.1253,144.55,144.48,0.25098]
[1723979656487,16.1253,144.55,144.48,1.63483355]
[1723979657671,16.1253,144.55,144.48,0.25098]
[1723979660776,6.6338,144.56,144.35,281.8678]
[1723979660777,15.5958,144.5,144.35,281.8678]
[1723979660978,15.5958,144.5,144.36,2.44225945]
[1723979661294,15.5958,144.47,144.38,16.1253]
[1723979661586,15.5958,144.47,144.35,259.8]
[1723979661782,15.5958,144.47,144.36,8.28456372]
[1723979662187,6.4166,144.46,144.36,8.28456372]
[1723979663262,6.4166,144.46,144.37,45.37647]
[1723979663498,6.4166,144.46,144.38,0.12549]
[1723979663785,6.4166,144.46,144.38,20.12549]
[1723979663993,6.4166,144.46,144.39,45.25098]
[1723979664285,6.4166,144.46,144.4,20.0]
[1723979664488,6.4166,144.46,144.41,0.37647]
[1723979671199,6.4166,144.46,144.4,20.0]
[1723979674991,6.4166,144.46,144.41,45.37647]
[1723979677096,6.4166,144.46,144.42,20.0]
[1723979678704,6.4166,144.46,144.41,45.37647]
[1723979681701,6.4166,144.46,144.41,0.37647]
[1723979687520,6.4166,144.46,144.41,0.12549]
[1723979687815,6.4166,144.46,144.38,20.0]
[1723979688024,6.4166,144.46,144.39,45.37647]
[1723979688190,6.4166,144.46,144.4,20.0]
[1723979691413,6.4166,144.46,144.37,8.28456372]
[1723979691616,6.4166,144.46,144.34,25.331638]
[1723979691810,6.4166,144.46,144.35,8.28456372]
[1723979692396,6.4166,144.46,144.36,0.12549]
[1723979692719,6.4166,144.46,144.36,45.37647]
[1723979693025,6.4166,144.46,144.37,20.0]
[1723979694022,6.4166,144.46,144.38,45.50196]
[1723979694241,6.4166,144.46,144.39,20.0]
[1723979701507,16.5018,144.45,144.39,20.0]
[1723979701753,16.5018,144.45,144.35,20.0]
[1723979701922,16.5018,144.45,144.36,0.25098]
[1723979702814,16.5018,144.45,144.37,0.12549]
[1723979703018,16.5018,144.45,144.37,20.12549]
[1723979703339,16.5018,144.45,144.38,0.12549]
[1723979703531,16.5018,144.45,144.38,45.37647]
[1723979703728,16.5018,144.45,144.39,20.12549]
[1723979704825,16.5018,144.45,144.4,0.25098]
[1723979705238,16.5018,144.45,144.41,0.12549]
[1723979705439,16.5018,144.45,144.41,20.12549]
[1723979708920,16.5018,144.48,144.41,20.12549]
[1723979713219,16.5018,144.48,144.42,0.12549]
[1723979713417,16.5018,144.48,144.42,0.25098]
[1723979715747,16.5018,144.48,144.43,0.25098]
[1723979715929,6.3751,144.5,144.44,0.25098]
[1723979716128,6.3751,144.5,144.45,0.12549]
[1723979716329,6.3751,144.5,144.45,20.12549]
[1723979716652,6.3751,144.5,144.46,0.25098]
[1723979719927,15.7787,144.52,144.46,0.25098]
[1723979720651,15.7787,144.56,144.47,8.41005372]
[1723979720832,15.7787,144.56,144.49,0.12549]
[1723979721157,15.7787,144.56,144.49,0.25098]
[1723979721327,15.7787,144.56,144.5,0.25098]
[1723979721525,15.7787,144.56,144.51,0.12549]
[1723979731954,15.6189,144.6,144.51,0.25098]
[1723979732133,15.6189,144.6,144.52,0.25098]
[1723979732334,15.6189,144.6,144.53,0.12549]
[1723979733159,15.6189,144.6,144.53,45.12549]
[1723979733455,15.6189,144.6,144.54,20.25098]
[1723979733852,6.1461,144.62,144.54,20.25098]
[1723979734946,6.1461,144.62,144.55,1.38329882]
[1723979737567,6.1461,144.62,144.56,0.37647]
[1723979737752,6.1461,144.62,144.56,20.37647]
[1723979738854,15.6189,144.63,144.56,20.37647]
[1723979739540,15.6189,144.63,144.56,20.0]
[1723979739846,15.6189,144.63,144.52,20.0]
[1723979740058,15.6189,144.63,144.53,0.12549]
[1723979740840,15.6189,144.63,144.53,45.37647]
[1723979741162,15.6189,144.63,144.54,20.0]
[1723979741877,15.6189,144.63,144.55,0.25098]
[1723979742051,15.6189,144.63,144.55,45.37647]
[1723979742244,15.6189,144.63,144.56,20.0]
[1723979742943,15.6189,144.63,144.57,0.37647]
[1723979746644,15.6189,144.63,144.56,20.0]
[1723979748975,15.6189,144.63,144.55,20.25098]
[1723979751164,15.6189,144.63,144.56,0.37647]
[1723979754577,6.6584,144.61,144.5,31.23866372]
[1723979754777,0.12549,144.6,144.5,22.9541]
[1723979756076,0.12549,144.6,144.51,20.0]
[1723979756784,0.12549,144.6,144.52,0.12549]
[1723979757979,6.6584,144.61,144.52,0.25098]
[1723979758183,0.12549,144.6,144.52,0.25098]
[1723979758367,0.12549,144.6,144.52,0.12549]
[1723979761296,0.12549,144.6,144.51,20.0]
[1723979761297,0.12549,144.58,144.51,20.0]
[1723979761495,0.12549,144.58,144.48,20.0]
[1723979761798,0.12549,144.58,144.47,22.40154467]
[1723979761992,0.12549,144.56,144.46,24.77196372]
[1723979762172,16.4298,144.55,144.45,15.6189]
[1723979762371,16.4298,144.55,144.44,10.65278357]
[1723979763388,16.4298,144.55,144.45,65.50196]
[1723979763589,16.4298,144.55,144.45,73.78652372]
[1723979763977,16.4298,144.55,144.47,0.12549]
[1723979764284,16.4298,144.55,144.47,73.78652372]
[1723979764493,16.4298,144.59,144.48,24.49328809]
[1723979764801,16.4298,144.59,144.49,65.37647]
[1723979764972,16.4298,144.59,144.5,0.12549]
[1723979766978,16.4298,144.59,144.5,1.50898096]
[1723979767291,16.4298,144.59,144.51,0.25098]
[1723979767480,16.4298,144.59,144.52,0.12549]
[1723979768187,16.4298,144.59,144.52,0.25098]
[1723979768493,16.4298,144.59,144.53,0.37647]
[1723979768684,16.4298,144.59,144.54,0.25098]
[1723979768870,16.4298,144.59,144.55,0.12549]
[1723979769466,6.6584,144.61,144.55,0.25098]
[1723979769688,6.6584,144.61,144.56,0.12549]
[1723979769880,6.6584,144.61,144.56,0.25098]
[1723979772094,6.6584,144.61,144.49,22.44966905]
[1723979772302,6.6584,144.61,144.49,30.73423277]
[1723979772965,6.6584,144.61,144.49,28.28456372]
[1723979773587,6.6584,144.61,144.5,0.12549]
[1723979773793,60.68927,144.6,144.48,16.4874]
[1723979774281,60.68927,144.6,144.46,8.28456372]
[1723979775698,45.37647,144.6,144.46,8.28456372]
[1723979775995,0.12549,144.56,144.46,8.28456372]
[1723979777073,15.3407,144.57,144.47,45.50196]
[1723979777379,15.3407,144.57,144.49,0.12549]
[1723979777575,15.3407,144.57,144.49,45.50196]
[1723979778093,15.3407,144.57,144.49,45.37647]
[1723979781505,15.3407,144.57,144.5,20.0]
[1723979781706,15.3407,144.57,144.51,0.37647]
[1723979783009,15.3407,144.57,144.51,45.37647]
[1723979783505,15.3407,144.57,144.52,20.0]
[1723979783806,15.3407,144.57,144.53,45.37647]
[1723979787485,6.1764,144.59,144.53,45.37647]
[1723979790606,6.1764,144.59,144.54,20.0]
[1723979794696,6.1764,144.59,144.55,0.25098]
[1723979795105,6.1764,144.59,144.55,45.25098]
[1723979795285,16.5112,144.6,144.56,0.12549]
[1723979800211,16.5112,144.6,144.55,0.12549]
[1723979800811,16.5112,144.6,144.53,0.12549]
[1723979800998,16.5112,144.6,144.53,45.37647]
[1723979801209,16.5112,144.6,144.54,20.0]
[1723979803615,16.5112,144.6,144.55,0.12549]
[1723979803810,16.5112,144.6,144.55,45.50196]
[1723979803995,16.5112,144.6,144.56,20.0]
[1723979814340,16.5112,144.6,144.55,0.37647]
[1723979826246,6.6306,144.63,144.56,0.12549]
[1723979826412,15.372,144.64,144.56,9.91811156]
[1723979826612,15.372,144.64,144.58,0.12549]
[1723979826811,15.372,144.64,144.59,8.28456372]
[1723979827039,15.372,144.64,144.6,0.25098]
[1723979827214,15.372,144.64,144.61,0.25098]
[1723979829319,15.372,144.64,144.6,65.12549]
[1723979829532,15.372,144.64,144.6,20.0]
[1723979829847,15.372,144.64,144.56,20.12549]
[1723979830018,15.372,144.64,144.58,0.12549]
[1723979830339,15.372,144.64,144.58,20.12549]
[1723979830523,15.372,144.64,144.59,45.25098]
[1723979830830,15.372,144.64,144.6,20.0]
[1723979831038,15.372,144.64,144.59,45.25098]
[1723979831230,15.372,144.64,144.58,0.12549]
[1723979831536,15.372,144.64,144.57,45.37647]
[1723979832615,15.372,144.64,144.51,27.3851]
[1723979832919,15.372,144.64,144.52,8.41005372]
[1723979833726,15.372,144.64,144.54,0.12549]
[1723979833925,15.372,144.64,144.54,8.53554372]
[1723979834127,15.372,144.64,144.55,73.53554372]
[1723979834322,15.372,144.64,144.56,0.12549]
[1723979834528,15.372,144.64,144.56,45.12549]
[1723979834747,15.372,144.64,144.57,20.25098]
[1723979835427,15.372,144.64,144.57,20.0]
[1723979837730,16.2482,144.61,144.49,53.1794]
[1723979837940,16.2482,144.61,144.5,8.28456372]
[1723979839055,16.2482,144.61,144.51,65.50196]
[1723979839240,16.2482,144.61,144.51,73.78652372]
[1723979839635,0.12549,144.6,144.51,8.28456372]
[1723979840134,16.2482,144.61,144.51,8.28456372]
[1723979840824,16.2482,144.61,144.52,45.37647]
[1723979841028,16.2482,144.61,144.53,20.0]
[1723979843855,16.2482,144.61,144.54,0.12549]
[1723979844034,16.2482,144.61,144.54,45.37647]
[1723979845632,16.2482,144.61,144.54,0.37647]
[1723979846739,16.2482,144.61,144.54,0.12549]